bitfinex/quotes_SOLUSD_20250106
["timestamp","ask_amount","ask_price","bid_price","bid_amount"]
[1736175913211,23.80011721,221.02,220.94,23.80011721]
[1736175913526,23.80011721,221.01,220.94,23.80011721]
[1736175913710,23.80011721,221.04,220.97,23.80011721]
[1736175913917,23.80011721,221.06,220.98,23.80011721]
[1736175914099,23.80011721,221.05,220.97,23.80011721]
[1736175914302,23.80011721,221.01,220.91,2.92]
[1736175914499,23.776884,221.09,220.96,23.80011721]
[1736175914500,23.80011721,221.04,220.96,23.80011721]
[1736175914733,20.0,221.06,220.92,0.12549]
[1736175914734,23.80011721,221.06,220.92,0.12549]
[1736175915024,17.5089,221.19,220.96,0.12549]
[1736175915224,17.5089,221.19,221.03,184.0]
[1736175915529,23.776884,221.18,221.03,186.92]
[1736175915898,20.0,221.15,221.03,186.92]
[1736175916111,23.776884,221.18,221.05,38.63086296]
[1736175916112,38.63086296,221.13,221.05,38.63086296]
[1736175916309,38.63086296,221.13,221.06,38.63086296]
[1736175916730,38.63086296,221.11,221.04,38.63086296]
[1736175916939,38.63086296,221.12,221.05,38.63086296]
[1736175917135,38.63086296,221.13,221.06,38.63086296]
[1736175917314,38.62994399,221.14,221.06,38.62994399]
[1736175917512,38.62994399,221.13,221.06,38.62994399]
[1736175917708,38.62994399,221.12,221.05,38.62994399]
[1736175917933,38.62994399,221.12,221.04,38.62994399]
[1736175918129,38.62994399,221.09,221.03,2.92]
[1736175918327,23.776884,221.18,221.03,2.92]
[1736175918639,6.2063,221.19,221.03,2.92]
[1736175918939,6.2063,221.19,221.04,24.027864]
[1736175919137,20.0,221.16,221.03,2.92]
[1736175919456,38.62994399,221.13,221.06,38.62994399]
[1736175919768,38.62994399,221.13,221.06,222.62994399]
[1736175919935,38.62994399,221.1,221.04,38.62994399]
[1736175920144,38.62994399,221.11,221.04,38.62994399]
[1736175920319,38.62994399,221.13,221.06,38.62994399]
[1736175921527,38.62994399,221.1,221.03,38.62994399]
[1736175921751,38.62994399,221.06,220.99,38.62994399]
[1736175921939,38.62994399,221.06,220.99,41.54994399]
[1736175922134,38.62994399,221.03,220.99,2.92]
[1736175922340,20.0,221.07,220.99,2.92]
[1736175922650,38.62994399,221.04,220.97,38.62994399]
[1736175922853,20.0,221.03,220.88,40.18584399]
[1736175923046,20.0,221.03,220.99,184.0]
[1736175923255,20.0,221.0,220.99,184.0]
[1736175923559,38.62994399,221.0,220.93,41.54994399]
[1736175923752,38.62994399,221.01,220.94,38.62994399]
[1736175923935,38.62994399,221.0,220.93,38.62994399]
[1736175924136,38.62994399,220.97,220.9,38.62994399]
[1736175924539,38.62994399,220.95,220.88,38.62994399]
[1736175924757,38.62994399,220.91,220.83,6.3806]
[1736175925267,38.62994399,220.92,220.85,38.62994399]
[1736175925435,38.62994399,220.89,220.82,38.62994399]
[1736175925634,38.62994399,220.89,220.76,17.8051]
[1736175925635,38.62994399,220.86,220.79,38.62994399]
[1736175925863,38.62994399,220.85,220.77,38.62994399]
[1736175926070,38.62994399,220.83,220.77,2.92]
[1736175926449,38.62994399,220.86,220.79,38.62994399]
[1736175926781,38.62994399,220.89,220.82,38.62994399]
[1736175926982,38.62994399,220.88,220.77,2.92]
[1736175927147,43.776884,220.94,220.83,38.62994399]
[1736175927348,38.62994399,220.89,220.82,38.62994399]
[1736175927646,38.62994399,220.9,220.83,38.62994399]
[1736175927850,38.62994399,220.93,220.86,38.62994399]
[1736175928272,38.62994399,220.97,220.9,38.62994399]
[1736175928460,38.62994399,220.99,220.92,38.62994399]
[1736175928777,38.62994399,220.99,220.91,38.62994399]
[1736175928959,38.62994399,220.96,220.89,38.62994399]
[1736175929151,38.62994399,220.95,220.88,38.62994399]
[1736175929483,38.62994399,220.98,220.91,38.62994399]
[1736175929670,38.62994399,220.99,220.92,38.62994399]
[1736175929867,38.62994399,220.97,220.9,38.62994399]
[1736175930079,38.62994399,220.96,220.89,38.62994399]
[1736175930474,38.62994399,220.99,220.92,38.62994399]
[1736175930767,38.62994399,220.97,220.9,38.62994399]
[1736175931073,38.62994399,220.96,220.89,38.62994399]
[1736175931282,38.62994399,220.94,220.87,38.62994399]
[1736175931570,38.62994399,221.04,220.93,38.62994399]
[1736175931766,38.62994399,221.06,220.99,38.62994399]
[1736175931965,38.62994399,221.08,221.01,38.62994399]
[1736175932372,38.62994399,221.09,221.02,38.62994399]
[1736175932564,38.62994399,221.11,221.04,38.62994399]
[1736175933075,38.62994399,221.11,220.99,38.62994399]
[1736175933076,38.62994399,221.12,221.06,184.0]
[1736175933650,38.62994399,221.13,221.06,38.62994399]
[1736175933869,20.0,221.11,221.08,38.62994399]
[1736175934071,20.0,221.11,221.06,38.62994399]
[1736175934256,38.62994399,221.12,221.05,38.62994399]
[1736175934571,38.62994399,221.15,221.07,38.62994399]
[1736175934781,6.0902,221.18,221.07,38.62994399]
[1736175934782,38.62994399,221.14,221.07,38.62994399]
[1736175934961,38.62994399,221.13,221.05,41.54994399]
[1736175935152,38.62994399,221.1,221.05,2.92]
[1736175935355,38.62994399,221.08,221.05,2.92]
[1736175935545,38.62994399,221.09,221.05,2.92]
[1736175935750,38.62994399,221.08,221.05,2.92]
[1736175936368,38.62994399,221.06,221.05,2.92]
[1736175936796,38.62994399,221.06,220.99,38.62994399]
[1736175937575,38.62994399,221.04,220.97,38.62994399]
[1736175937747,38.62994399,221.04,220.97,41.48994399]
[1736175938151,38.62994399,221.01,220.96,184.0]
[1736175938352,38.62994399,221.03,220.96,38.62994399]
[1736175938552,38.62994399,221.04,220.97,38.62994399]
[1736175939873,38.62994399,221.04,220.98,38.62994399]
[1736175940175,38.62994399,221.08,221.01,38.62994399]
[1736175940474,38.62994399,221.06,220.99,38.62994399]
[1736175940912,38.62994399,221.03,220.96,38.62994399]
[1736175941257,38.62994399,221.06,220.99,38.62994399]
[1736175941566,38.62994399,221.09,221.02,38.62994399]
[1736175942077,38.62994399,221.1,221.03,38.62994399]
[1736175942255,38.62994399,221.09,221.02,38.62994399]
[1736175942455,38.62994399,221.07,221.0,38.62994399]
[1736175942655,38.62994399,221.06,220.99,38.62994399]
[1736175942877,11.306,221.12,221.04,38.62994399]
[1736175942878,38.62994399,221.12,221.04,38.62994399]
[1736175943076,11.3042,221.16,221.02,2.86]
[1736175943282,25.0,221.13,220.95,2.86]
[1736175943493,20.0,221.08,220.91,11.3167]
[1736175943785,20.0,221.04,220.94,2.86]
[1736175944084,23.776884,221.03,220.88,1.5444]
[1736175944397,23.7834205,220.97,220.9,26.6434205]
[1736175944755,23.7834205,220.96,220.9,186.86]
[1736175944952,23.7834205,220.97,220.9,210.6434205]
[1736175945269,23.7834205,220.96,220.9,186.86]
[1736175945467,23.7834205,220.96,220.89,23.7834205]
[1736175945657,23.7834205,220.96,220.89,26.6434205]
[1736175945858,23.7834205,220.98,220.91,23.7834205]
[1736175946069,43.7834205,221.0,220.93,23.7834205]
[1736175946773,23.7834205,221.02,220.95,23.7834205]
[1736175946979,23.7834205,221.03,220.95,23.7834205]
[1736175947172,1.5476,221.07,220.97,23.7834205]
[1736175947490,20.0,221.02,220.99,23.7834205]
[1736175947686,20.0,221.02,220.98,23.7834205]
[1736175947890,23.7834205,221.02,220.95,23.7834205]
[1736175948092,43.7834205,221.02,220.9,0.12549]
[1736175948270,43.7834205,221.02,220.95,23.7834205]
[1736175948477,20.0,221.02,220.96,184.0]
[1736175948679,23.7834205,221.04,220.97,23.7834205]
[1736175948879,43.7834205,221.06,220.99,23.7834205]
[1736175949080,23.7834205,221.06,220.99,23.7834205]
[1736175949283,23.7834205,221.05,220.98,23.7834205]
[1736175949499,23.7834205,221.03,220.96,23.7834205]
[1736175949671,23.7834205,221.05,220.97,23.7834205]
[1736175950072,23.7834205,221.03,220.96,23.7834205]
[1736175950295,23.7834205,220.99,220.92,23.7834205]
[1736175950487,23.7834205,221.02,220.94,23.7834205]
[1736175950701,23.7834205,220.97,220.9,23.7834205]
[1736175950906,23.7834205,220.94,220.88,2.86]
[1736175951197,23.7834205,220.93,220.88,2.86]
[1736175951397,23.7834205,220.94,220.88,2.86]
[1736175951575,23.7834205,220.93,220.88,2.86]
[1736175952379,23.7834205,220.92,220.88,2.86]
[1736175952582,23.7834205,220.91,220.88,2.86]
[1736175952883,23.7834205,220.91,220.81,8.2867]
[1736175952884,23.7834205,220.89,220.82,23.7834205]
[1736175953084,23.7834205,220.9,220.83,23.7834205]
[1736175953310,23.7834205,220.89,220.81,23.7834205]
[1736175953603,23.7834205,220.87,220.81,2.86]
[1736175954003,23.7834205,220.85,220.78,23.7834205]
[1736175954202,8.08283527,220.97,220.74,26.6434205]
[1736175954203,23.7834205,220.81,220.74,26.6434205]
[1736175954593,20.0,220.84,220.78,23.7834205]
[1736175954785,20.0,220.84,220.75,0.12549]
[1736175954786,20.0,220.84,220.75,0.25098]
[1736175954980,11.3155,220.94,220.75,24.027864]
[1736175955207,8.08283527,220.97,220.77,0.12549]
[1736175955377,8.08283527,220.97,220.83,184.0]
[1736175955378,6.2572,220.97,220.83,184.0]
[1736175955581,20.0,220.9,220.83,184.0]
[1736175956000,23.7834205,220.88,220.81,23.7834205]
[1736175956501,43.7834205,220.9,220.83,23.7834205]
[1736175956686,8.06460656,220.97,220.85,23.7834205]
[1736175956687,23.7834205,220.92,220.85,23.7834205]
[1736175957001,6.2572,220.97,220.83,2.86]
[1736175957002,23.7834205,220.95,220.88,23.7834205]
[1736175957702,23.7834205,220.96,220.88,23.7834205]
[1736175958203,6.2572,220.97,220.86,23.7834205]
[1736175958392,23.7834205,220.93,220.85,23.7834205]
[1736175958787,23.7834205,220.92,220.84,23.7834205]
[1736175958989,23.7834205,220.91,220.84,207.7834205]
[1736175959308,23.7834205,220.9,220.82,23.7834205]
[1736175959506,23.7834205,220.86,220.79,2.86]
[1736175959717,23.7834205,220.85,220.77,23.7834205]
[1736175959915,23.7834205,220.87,220.79,23.7834205]
[1736175960528,23.7834205,220.92,220.85,23.7834205]
[1736175960714,23.7834205,220.94,220.87,23.7834205]
[1736175960889,23.7834205,220.93,220.85,23.7834205]
[1736175961104,23.776884,220.96,220.86,23.7834205]
[1736175961306,6.6501,221.03,220.85,0.12549]
[1736175961539,6.6501,221.03,220.85,0.25098]
[1736175961919,23.776884,221.02,220.85,0.25098]
[1736175962120,6.6501,221.03,220.87,0.25098]
[1736175962334,6.6501,221.03,220.95,23.7834205]
[1736175962335,30.4335205,221.03,220.95,23.7834205]
[1736175962509,1.6227,221.05,220.98,23.7834205]
[1736175962510,23.7834205,221.05,220.98,23.7834205]
[1736175962707,23.7834205,221.0,220.95,2.86]
[1736175962907,20.0,221.05,220.93,23.7834205]
[1736175963154,20.0,221.05,220.93,2.86]
[1736175963155,23.776884,221.03,220.93,2.86]
[1736175963443,20.0,221.0,220.93,2.86]
[1736175963635,0.12549,221.05,220.93,2.86]
[1736175963811,1.5579,221.11,220.94,0.25098]
[1736175964016,38.67998608,221.05,220.98,38.67998608]
[1736175964257,38.67998608,221.06,220.99,38.67998608]
[1736175964545,38.67998608,221.03,220.96,38.67998608]
[1736175964746,38.67998608,221.01,220.94,38.67998608]
[1736175964938,38.67998608,221.01,220.93,41.53998608]
[1736175965247,38.67998608,221.02,220.95,38.67998608]
[1736175965409,38.67998608,221.02,220.99,184.0]
[1736175965756,20.0,221.03,220.99,184.0]
[1736175966110,38.67998608,221.06,220.99,38.67998608]
[1736175966507,38.67998608,221.05,220.98,38.67998608]
[1736175966713,58.67998608,221.06,220.98,38.67998608]
[1736175967146,58.67998608,221.06,220.99,38.67998608]
[1736175967447,38.67998608,221.07,221.0,38.67998608]
[1736175967663,38.67998608,221.07,220.99,38.67998608]
[1736175967823,6.0438,221.1,220.95,11.44019]
[1736175967824,38.67998608,221.05,220.98,38.67998608]
[1736175968159,38.67998608,221.03,220.95,38.67998608]
[1736175968321,38.67998608,221.04,220.97,38.67998608]
[1736175968520,23.776884,221.05,220.98,38.67998608]
[1736175968737,38.67998608,221.05,220.98,38.67998608]
[1736175969034,38.67998608,220.99,220.94,184.0]
[1736175969211,20.0,221.02,220.89,41.49998608]
[1736175969535,38.67998608,220.96,220.89,41.49998608]
[1736175969742,38.67998608,220.95,220.89,2.82]
[1736175970121,38.67998608,220.95,220.88,2.82]
[1736175970328,38.67998608,220.95,220.88,41.49998608]
[1736175970518,1.77619017,221.01,220.9,38.67998608]
[1736175970842,38.67998608,220.97,220.9,38.67998608]
[1736175971026,62.45687008,220.95,220.87,41.49998608]
[1736175971528,23.776884,220.93,220.86,38.67998608]
[1736175971729,23.776884,220.93,220.87,2.82]
[1736175971927,23.776884,220.94,220.87,41.49998608]
[1736175972131,38.67998608,220.95,220.88,38.67998608]
[1736175972439,23.776884,220.95,220.9,184.0]
[1736175972631,38.67998608,220.96,220.9,184.0]
[1736175972966,0.5,235.6,220.95,38.67998608]
[1736175972967,38.67998608,221.04,220.95,38.67998608]
[1736175973161,38.67998608,221.08,220.94,20.0]
[1736175973448,20.0,221.07,220.96,38.67998608]
[1736175973617,23.902374,221.06,220.99,38.67998608]
[1736175973815,27.09387865,221.14,220.94,20.0]
[1736175973816,38.67998608,221.11,221.03,38.67998608]
[1736175974027,38.67998608,221.12,221.04,38.67998608]
[1736175974228,38.67998608,221.14,221.06,38.67998608]
[1736175974421,38.67998608,221.11,221.04,38.67998608]
[1736175974640,38.67998608,221.11,221.04,2.82]
[1736175974832,38.67998608,221.11,221.04,41.49998608]
[1736175975025,38.67998608,221.13,221.06,38.67998608]
[1736175975225,38.67998608,221.14,221.07,38.67998608]
[1736175975425,38.67998608,221.16,221.04,2.82]
[1736175975642,38.67998608,221.17,221.09,38.67998608]
[1736175975831,38.67998608,221.17,221.12,184.0]
[1736175976030,6.4736,221.21,221.12,184.0]
[1736175976031,38.67998608,221.15,221.12,184.0]
[1736175976235,38.67998608,221.13,221.04,41.49998608]
[1736175976419,23.776884,221.2,221.05,2.82]
[1736175976617,62.45687008,221.14,221.07,38.67998608]
[1736175976936,38.67998608,221.13,221.05,2.82]
[1736175977149,6.59909,221.21,221.06,0.12549]
[1736175977464,6.59909,221.21,221.1,38.67998608]
[1736175977465,38.67998608,221.17,221.1,38.67998608]
[1736175977763,38.67998608,221.2,221.12,38.67998608]
[1736175977919,38.67998608,221.18,221.11,38.67998608]
[1736175978125,38.67998608,221.2,221.12,38.67998608]
[1736175978358,38.67998608,221.21,221.14,38.67998608]
[1736175978551,20.0,221.19,221.14,41.49998608]
[1736175978724,20.0,221.19,221.14,2.82]
[1736175979221,38.67998608,221.22,221.14,41.49998608]
[1736175979424,38.67998608,221.27,221.2,38.67998608]
[1736175979748,1.5483,221.3,221.14,2.82]
[1736175979951,38.67998608,221.26,221.19,38.67998608]
[1736175980263,38.67998608,221.24,221.16,38.67998608]
[1736175980466,38.67998608,221.21,221.14,2.82]
[1736175980771,38.67998608,221.21,221.15,2.82]
[1736175980955,38.67998608,221.18,221.15,2.82]
[1736175982030,38.67998608,221.2,221.15,2.82]
[1736175982227,38.67998608,221.16,221.15,2.82]
[1736175982425,38.67998608,221.16,221.1,2.82]
[1736175982636,38.67998608,221.17,221.1,41.49998608]
[1736175982831,11.2986,221.27,221.1,2.82]
[1736175983035,38.67998608,221.17,221.1,2.82]
[1736175983255,38.67998608,221.18,221.1,2.82]
[1736175983568,38.67998608,221.19,221.12,38.67998608]
[1736175983768,38.67998608,221.2,221.12,38.67998608]
[1736175983983,38.67998608,221.18,221.1,41.49998608]
[1736175984195,38.67998608,221.16,221.1,2.82]
[1736175984373,38.67998608,221.15,221.08,41.49998608]
[1736175984548,23.776884,221.14,221.08,41.49998608]
[1736175984748,38.67998608,221.13,221.08,2.82]
[1736175984977,38.67998608,221.11,221.04,38.67998608]
[1736175985285,38.67998608,221.11,220.99,6.74329]
[1736175985286,23.77935165,221.12,221.05,23.77935165]
[1736175985457,23.776884,221.17,221.04,0.12549]
[1736175985644,6.4073,221.19,221.05,184.0]
[1736175986075,23.776884,221.18,221.06,0.12549]
[1736175986464,23.776884,221.14,221.07,23.77935165]
[1736175986859,23.77935165,221.14,221.06,23.77935165]
[1736175987419,43.77935165,221.19,221.11,23.77935165]
[1736175987551,23.77935165,221.18,221.1,23.77935165]
[1736175987855,47.55623565,221.18,221.11,23.77935165]
[1736175988044,23.77935165,221.19,221.12,26.59935165]
[1736175988249,23.77935165,221.19,221.13,2.82]
[1736175989087,23.77935165,221.23,221.15,23.77935165]
[1736175989386,23.77935165,221.2,221.13,26.59935165]
[1736175989592,23.77935165,221.21,221.14,23.77935165]
[1736175990083,23.77935165,221.23,221.16,23.77935165]
[1736175990392,23.902374,221.29,221.17,23.77935165]
[1736175990393,23.77935165,221.25,221.17,23.77935165]
[1736175990876,23.77935165,221.24,221.17,23.77935165]
[1736175991201,23.776884,221.21,221.14,23.77935165]
[1736175991401,23.77935165,221.19,221.14,2.82]
[1736175991702,23.77935165,221.21,221.14,26.59935165]
[1736175991872,23.77935165,221.2,221.14,2.82]
[1736175992074,23.77935165,221.21,221.14,2.82]
[1736175992389,23.77935165,221.19,221.14,2.82]
[1736175992595,23.77935165,221.18,221.13,2.82]
[1736175992773,23.77935165,221.19,221.11,23.77935165]
[1736175992977,23.77935165,221.19,221.12,2.82]
[1736175993176,23.776884,221.19,221.12,26.59935165]
[1736175993396,23.776884,221.19,221.13,23.77935165]
[1736175993594,23.776884,221.19,221.12,26.59935165]
[1736175993899,23.77935165,221.15,221.08,23.77935165]
[1736175994104,23.77935165,221.15,221.08,2.82]
[1736175994399,47.55623565,221.17,221.09,23.77935165]
[1736175994600,47.55623565,221.15,221.08,26.59935165]
[1736175994801,23.77935165,221.14,221.08,2.76]
[1736175995178,23.77935165,221.09,220.96,11.3138]
[1736175995389,23.77935165,221.09,221.02,23.77935165]
[1736175995714,23.77935165,221.14,221.06,23.77935165]
[1736175995898,20.0,221.12,221.07,23.77935165]
[1736175996278,23.77935165,221.11,221.06,2.76]
[1736175996484,23.77935165,221.1,221.06,2.76]
[1736175996680,23.77935165,221.11,221.06,2.76]
[1736175996882,23.77935165,221.12,221.06,2.76]
[1736175997080,23.77935165,221.11,221.06,2.76]
[1736175997399,23.77935165,221.09,221.06,2.76]
[1736175997984,23.77935165,221.11,221.06,2.76]
[1736175998301,23.77935165,221.15,221.07,23.77935165]
[1736175998491,23.77935165,221.17,221.09,23.77935165]
[1736175999323,23.77935165,221.13,221.06,2.76]
[1736175999815,23.776884,221.14,221.07,23.77935165]
[1736176000101,23.77935165,221.1,221.02,26.53935165]
[1736176000290,23.77935165,221.12,221.04,23.77935165]
[1736176001982,23.77935165,221.14,221.06,23.77935165]
[1736176002186,23.77935165,221.2,221.12,23.77935165]
[1736176003108,23.77935165,221.22,221.14,23.77935165]
[1736176003288,23.75416726,221.23,221.15,23.75416726]
[1736176003889,23.75416726,221.25,221.19,23.75416726]
[1736176004105,23.75416726,221.27,221.19,23.75416726]
[1736176004317,23.776884,221.24,221.17,23.75416726]
[1736176004517,23.902374,221.26,221.15,23.75416726]
[1736176004518,23.776884,221.22,221.15,23.75416726]
[1736176004790,23.776884,221.2,221.14,23.75416726]
[1736176005012,17.6364,221.32,221.19,23.75416726]
[1736176005196,17.6364,221.32,221.22,23.75416726]
[1736176005197,23.75416726,221.29,221.22,23.75416726]
[1736176005397,20.0,221.28,221.2,2.76]
[1736176005787,20.0,221.28,221.14,2.76]
[1736176005988,20.0,221.24,221.14,2.76]
[1736176006383,8.1800706,221.32,221.15,0.25098]
[1736176006590,23.75416726,221.29,221.21,23.75416726]
[1736176007302,20.0,221.28,221.23,23.75416726]
[1736176007487,20.0,221.23,221.08,11.3078]
[1736176007810,43.776884,221.22,221.13,2.76]
[1736176008109,16.2981,221.28,221.13,2.76]
[1736176008110,11.2981,221.28,221.13,2.76]
[1736176008509,20.0,221.25,221.13,2.76]
[1736176008714,20.0,221.25,221.13,22.76]
[1736176009096,20.0,221.27,221.14,0.12549]
[1736176009300,43.75416726,221.25,221.16,23.75416726]
[1736176009702,0.12549,221.3,221.18,23.75416726]
[1736176009915,23.75416726,221.27,221.18,23.75416726]
[1736176010212,23.75416726,221.29,221.22,23.75416726]
[1736176010421,23.75416726,221.29,221.23,2.76]
[1736176011214,23.75416726,221.3,221.23,26.51416726]
[1736176011400,23.75416726,221.3,221.23,2.76]
[1736176012199,23.75416726,221.28,221.23,2.76]
[1736176012401,23.75416726,221.26,221.18,23.75416726]
[1736176012609,23.75416726,221.21,221.17,2.76]
[1736176012807,23.75416726,221.21,221.16,2.76]
[1736176013614,23.75416726,221.22,221.16,2.76]
[1736176013817,23.75416726,221.24,221.16,26.51416726]
[1736176014113,23.75416726,221.25,221.17,23.75416726]
[1736176014418,6.69889,221.36,221.21,23.75416726]
[1736176014419,23.75416726,221.27,221.21,23.75416726]
[1736176014621,23.75416726,221.29,221.21,23.75416726]
[1736176015299,23.75416726,221.3,221.22,23.75416726]
[1736176015501,0.12549,221.33,221.22,23.75416726]
[1736176015502,23.75416726,221.29,221.22,23.75416726]
[1736176015691,23.75416726,221.3,221.22,23.75416726]
[1736176016387,23.75416726,221.29,221.21,23.75416726]
[1736176017124,23.75416726,221.29,221.22,23.75416726]
[1736176017797,23.75416726,221.32,221.25,23.75416726]
[1736176017988,23.75416726,221.33,221.26,23.75416726]
[1736176018191,23.75416726,221.31,221.24,23.75416726]
[1736176018815,23.75416726,221.33,221.25,23.75416726]
[1736176019116,23.75416726,221.33,221.26,23.75416726]
[1736176019316,23.75416726,221.31,221.23,23.75416726]
[1736176019515,23.75416726,221.27,221.2,23.75416726]
[1736176019820,23.75416726,221.28,221.21,23.75416726]
[1736176019996,23.75416726,221.25,221.18,23.75416726]
[1736176020336,23.75416726,221.27,221.19,23.75416726]
[1736176020519,23.75416726,221.28,221.2,23.75416726]
[1736176020893,23.75416726,221.25,221.18,23.75416726]
[1736176021090,47.53105126,221.24,221.17,23.75416726]
[1736176021312,23.75416726,221.18,221.09,6.5759]
[1736176021636,23.75416726,221.12,221.05,23.75416726]
[1736176021944,17.3248,221.24,221.0,23.75416726]
[1736176021945,23.75416726,221.07,221.0,23.75416726]
[1736176022247,23.75416726,221.11,221.04,23.75416726]
[1736176022618,23.75416726,221.12,221.05,23.75416726]
[1736176022835,23.75416726,221.11,221.04,23.75416726]
[1736176023219,23.75416726,221.17,221.09,23.75416726]
[1736176023431,1.836997,221.22,220.99,31.51416726]
[1736176023432,23.75416726,221.15,221.08,23.75416726]
[1736176023628,16.3006,221.23,221.08,23.75416726]
[1736176023629,23.75416726,221.16,221.08,23.75416726]
[1736176023833,23.75416726,221.17,221.1,23.75416726]
[1736176024221,23.75416726,221.15,221.08,23.75416726]
[1736176024423,23.75416726,221.22,221.14,23.75416726]
[1736176024935,20.0,221.21,221.1,23.75416726]
[1736176025126,23.75416726,221.18,221.11,23.75416726]
[1736176025544,23.75416726,221.2,221.13,23.75416726]
[1736176025740,43.75416726,221.21,221.14,23.75416726]
[1736176025925,23.75464063,221.23,221.16,23.75464063]
[1736176026121,1.5281,221.3,221.18,23.75464063]
[1736176026322,23.75464063,221.26,221.17,2.74]
[1736176026836,23.75464063,221.29,221.21,23.75464063]
[1736176027836,23.75464063,221.3,221.22,23.75464063]
[1736176028234,23.75464063,221.3,221.23,23.75464063]
[1736176028432,6.1361,221.36,221.26,23.75464063]
[1736176028433,23.75464063,221.33,221.26,23.75464063]
[1736176028626,23.75464063,221.37,221.27,2.74]
[1736176028832,23.75464063,221.4,221.32,23.75464063]
[1736176029021,23.75464063,221.41,221.33,23.75464063]
[1736176029342,23.75464063,221.41,221.33,2.74]
[1736176029540,23.75464063,221.41,221.34,23.75464063]
[1736176029844,23.75464063,221.41,221.33,26.49464063]
[1736176030018,23.75464063,221.42,221.35,23.75464063]
[1736176030218,23.75464063,221.43,221.35,23.75464063]
[1736176030440,23.75464063,221.44,221.37,23.75464063]
[1736176030740,0.12549,221.45,221.29,23.75464063]
[1736176030741,23.75464063,221.38,221.29,23.75464063]
[1736176030943,20.0,221.42,221.27,2.74]
[1736176031146,20.0,221.39,221.27,2.74]
[1736176031439,6.2463,221.42,221.27,2.74]
[1736176031650,20.0,221.42,221.27,2.74]
[1736176032145,20.0,221.42,221.29,0.12549]
[1736176032460,38.56105558,221.44,221.37,38.56105558]
[1736176032749,38.56105558,221.46,221.38,41.30105558]
[1736176033135,38.56105558,221.45,221.38,2.74]
[1736176033850,0.12549,221.49,221.38,2.74]
[1736176034030,38.56105558,221.41,221.38,2.74]
[1736176034229,38.56105558,221.43,221.38,2.74]
[1736176034433,20.0,221.48,221.38,2.74]
[1736176034639,20.0,221.44,221.32,41.30105558]
[1736176034834,38.56105558,221.4,221.32,41.30105558]
[1736176035124,38.56105558,221.39,221.32,2.74]
[1736176035531,38.56105558,221.41,221.33,38.56105558]
[1736176035747,38.56105558,221.42,221.34,38.56105558]
[1736176035922,38.56105558,221.41,221.33,38.56105558]
[1736176036126,38.56105558,221.42,221.34,38.56105558]
[1736176036321,38.56105558,221.43,221.36,38.56105558]
[1736176036569,38.56105558,221.43,221.32,22.74]
[1736176036570,38.56105558,221.45,221.38,38.56105558]
[1736176036859,38.56105558,221.46,221.38,38.56105558]
[1736176037028,38.56105558,221.48,221.41,38.56105558]
[1736176037352,38.56105558,221.46,221.41,2.74]
[1736176037745,38.56105558,221.47,221.41,2.74]
[1736176037949,38.56105558,221.45,221.41,2.74]
[1736176038550,38.56105558,221.42,221.41,2.74]
[1736176039152,38.56105558,221.42,221.35,2.74]
[1736176039342,38.56105558,221.42,221.35,41.30105558]
[1736176039543,38.56105558,221.44,221.37,38.56105558]
[1736176039746,38.56105558,221.45,221.37,38.56105558]
[1736176040029,38.56105558,221.47,221.39,38.56105558]
[1736176040328,38.56105558,221.45,221.37,38.56105558]
[1736176040726,38.56105558,221.43,221.36,38.56105558]
[1736176040949,38.56105558,221.4,221.36,2.74]
[1736176041152,38.56105558,221.39,221.36,2.74]
[1736176041347,38.56105558,221.41,221.36,2.74]
[1736176041656,38.56105558,221.37,221.33,2.74]
[1736176041839,38.56105558,221.39,221.33,2.74]
[1736176042040,38.56105558,221.38,221.33,2.74]
[1736176042241,38.56105558,221.36,221.33,2.74]
[1736176042443,38.56105558,221.34,221.29,2.74]
[1736176042649,38.56105558,221.34,221.28,2.74]
[1736176042858,35.067584,221.42,221.28,61.30105558]
[1736176042859,38.56105558,221.35,221.28,61.30105558]
[1736176043356,38.56105558,221.35,221.28,2.74]
[1736176043531,38.56105558,221.34,221.28,2.74]
[1736176043726,38.56105558,221.33,221.28,2.74]
[1736176043927,38.56105558,221.34,221.28,2.74]
[1736176044149,38.56105558,221.33,221.28,2.74]
[1736176044350,38.56105558,221.3,221.23,38.56105558]
[1736176044528,38.56105558,221.27,221.23,2.74]
[1736176044879,38.56105558,221.31,221.23,38.56105558]
[1736176045155,17.72,221.39,221.23,38.56105558]
[1736176045156,38.56105558,221.3,221.23,38.56105558]